bitfinex/quotes_SOLUSD_20250419
["timestamp","ask_amount","ask_price","bid_price","bid_amount"]
[1745055226008,7.82936966,139.12,139.07,7.76636966]
[1745055226206,7.76636966,139.1,139.05,7.76636966]
[1745055226724,7.76636966,139.1,139.06,7.76636966]
[1745055226921,7.76636966,139.11,139.06,7.76636966]
[1745055227128,7.76636966,139.11,139.04,89.69200914]
[1745055227316,7.1890726,139.1,139.06,7.76636966]
[1745055228628,14.95544226,139.1,139.06,7.76636966]
[1745055228829,14.95544226,139.1,139.05,7.76636966]
[1745055229225,7.19010641,139.08,139.05,7.76636966]
[1745055230435,7.19010641,139.08,139.04,7.76636966]
[1745055230621,14.95647607,139.08,139.02,84.053]
[1745055230822,14.95647607,139.08,139.03,7.76636966]
[1745055231613,7.76636966,139.07,139.02,7.76636966]
[1745055232010,7.19114051,139.06,139.02,7.76636966]
[1745055233934,26.41601852,139.05,139.0,1e-08]
[1745055234133,26.41601852,139.05,139.0,7.76636967]
[1745055234325,7.76636966,139.04,139.0,1e-08]
[1745055234632,7.76636966,139.04,139.0,7.76636967]
[1745055235439,7.19217491,139.04,139.0,7.76636967]
[1745055236730,14.95854457,139.04,139.0,7.76636967]
[1745055236935,14.95854457,139.04,139.0,1e-08]
[1745055237335,7.76636966,139.03,139.0,1e-08]
[1745055239328,7.19320961,139.02,139.0,1e-08]
[1745055239516,14.95957927,139.02,139.0,1e-08]
[1745055240237,7.19320961,139.02,139.0,1e-08]
[1745055240537,7.19287937,139.03,139.0,7.76636967]
[1745055241346,7.19287937,139.03,139.01,7.76636966]
[1745055243342,14.2,139.04,139.02,7.76636966]
[1745055243637,7.19117056,139.06,139.03,7.76636966]
[1745055244744,7.19062342,139.07,139.03,7.76636966]
[1745055245546,7.19062342,139.07,139.04,7.76636966]
[1745055248035,7.19062342,139.07,139.03,7.76636966]
[1745055249029,14.95699308,139.07,139.02,7.76636966]
[1745055251445,7.76636966,139.06,139.02,7.76636966]
[1745055252346,7.19165767,139.05,139.02,7.76636966]
[1745055253361,7.1913518,139.06,139.03,7.76636966]
[1745055253529,7.19077087,139.07,139.04,7.76636966]
[1745055253838,7.19077087,139.07,139.05,7.76636966]
[1745055254236,7.19077087,139.07,139.04,7.76636966]
[1745055254830,14.18,139.09,139.06,7.76636966]
[1745055255029,14.18,139.09,139.07,7.76636966]
[1745055255439,14.18,139.09,139.06,7.76636966]
[1745055255642,21.36971162,139.09,139.06,7.76636966]
[1745055256038,7.18971162,139.09,139.06,7.76636966]
[1745055257035,7.18855581,139.11,139.08,7.76636966]
[1745055257749,7.18855581,139.11,139.07,7.76636966]
[1745055258070,7.18855581,139.11,139.08,7.76636966]
[1745055258553,6.68855581,139.11,139.08,7.76636966]
[1745055258934,7.25122444,139.12,139.09,7.76636966]
[1745055260453,7.25122444,139.12,139.08,7.76636966]
[1745055260753,15.0175941,139.12,139.07,7.76636966]
[1745055261556,7.25122444,139.12,139.08,7.76636966]
[1745055261854,7.25122444,139.12,139.09,7.76636966]
[1745055264037,7.25122444,139.12,139.1,7.76636966]
[1745055265054,7.25122444,139.12,139.07,7.19025272]
[1745055265362,0.063,139.12,139.1,7.76636966]
[1745055267863,7.82936966,139.12,139.07,90.26636966]
[1745055268174,7.76636966,139.11,139.07,82.5]
[1745055268344,7.82936966,139.12,139.07,90.26636966]
[1745055268542,7.18855581,139.11,139.07,90.26636966]
[1745055270539,7.18855581,139.11,139.07,7.76636966]
[1745055272365,7.18855581,139.11,139.04,115.69205028]
[1745055272542,14.95492547,139.11,139.06,7.76636966]
[1745055272740,7.76636966,139.1,139.06,7.76636966]
[1745055272940,7.18958947,139.09,139.05,7.76636966]
[1745055273659,7.18958947,139.09,139.06,7.76636966]
[1745055273959,14.223,139.12,139.08,7.76636966]
[1745055274160,14.223,139.12,139.09,7.76636966]
[1745055275669,21.41121351,139.12,139.09,7.76636966]
[1745055276463,7.25121351,139.12,139.09,7.76636966]
[1745055278367,0.063,139.12,139.09,7.76636966]
[1745055279167,0.063,139.12,139.07,7.19036761]
[1745055279367,0.063,139.12,139.08,7.76636966]
[1745055281446,0.063,139.12,139.07,7.76636966]
[1745055281447,7.82936966,139.12,139.07,7.76636966]
[1745055282770,7.18855581,139.11,139.07,7.76636966]
[1745055285666,7.18855581,139.11,139.08,7.76636966]
[1745055286868,7.2510391,139.12,139.08,7.76636966]
[1745055290867,0.063,139.12,139.08,7.76636966]
[1745055291169,0.063,139.12,139.1,7.76636966]
[1745055292250,7.82936966,139.12,139.05,108.5]
[1745055292454,7.82936966,139.12,139.05,82.5]
[1745055292455,7.76636966,139.1,139.05,82.5]
[1745055292661,7.76636966,139.1,139.05,90.26636966]
[1745055293065,7.76636966,139.09,139.05,82.5]
[1745055293372,7.76636966,139.09,139.04,7.76636966]
[1745055294351,14.95646103,139.09,139.04,7.76636966]
[1745055294573,14.95556325,139.1,139.05,7.76636966]
[1745055294756,7.18919359,139.1,139.06,7.76636966]
[1745055295270,5.18691024,139.09,139.08,7.76636966]
[1745055295861,0.063,139.12,139.08,14.25266966]
[1745055296057,0.063,139.12,139.11,7.76636966]
[1745055297975,0.063,139.12,139.11,14.95492547]
[1745055299055,0.063,139.12,139.11,7.76636966]
[1745055299273,0.063,139.12,139.11,12.10598177]
[1745055300972,0.063,139.12,139.11,19.29453758]
[1745055301868,0.063,139.12,139.11,12.10598177]
[1745055308378,5.31424898,139.12,139.11,12.10598177]
[1745055309271,5.31424898,139.12,139.11,19.29453758]
[1745055311566,5.31424898,139.12,139.1,12.10598177]
[1745055312277,5.31424898,139.12,139.11,12.10598177]
[1745055314386,5.31424898,139.12,139.11,19.29453758]
[1745055316065,5.31424898,139.12,139.11,7.18855581]
[1745055316266,5.31424898,139.12,139.09,7.18958947]
[1745055316465,5.31424898,139.12,139.1,12.10598177]
[1745055317272,0.063,139.12,139.1,12.10598177]
[1745055317882,0.063,139.12,139.07,7.19037697]
[1745055318087,7.25119688,139.12,139.08,12.10598177]
[1745055318288,7.25119688,139.12,139.09,12.10598177]
[1745055318481,5.24789851,139.11,139.09,12.10598177]
[1745055318997,5.24789851,139.11,139.1,12.10598177]
[1745055320293,5.24789851,139.11,139.07,33.19062342]
[1745055320491,5.24789851,139.11,139.09,12.10598177]
[1745055321000,5.24789851,139.1,139.09,12.10598177]
[1745055321183,5.24789851,139.1,139.09,7.75193044]
[1745055322499,5.24789851,139.1,139.09,14.94151991]
[1745055324686,5.24789851,139.1,139.09,7.75193044]
[1745055326191,5.24789851,139.1,139.09,14.94151991]
[1745055327084,5.24789851,139.1,139.08,14.94191231]
[1745055327486,5.24789851,139.1,139.09,7.75193044]
[1745055328498,5.24789851,139.1,139.08,14.94191231]
[1745055329090,5.24789851,139.1,139.08,7.75193044]
[1745055329705,5.24789851,139.09,139.08,7.75193044]
[1745055330202,5.24789851,139.09,139.07,7.75193044]
[1745055330793,5.24789851,139.08,139.07,7.75193044]
[1745055331909,5.24789851,139.08,139.07,14.94255386]
[1745055332409,5.24789851,139.08,139.04,14.94391259]
[1745055332605,5.24789851,139.08,139.04,7.19198215]
[1745055332809,5.24789851,139.07,139.06,7.75193044]
[1745055333106,5.24789851,139.07,139.06,40.94307095]
[1745055334788,0.063,139.12,139.06,58.92092223]
[1745055334997,0.063,139.12,139.1,7.75193044]
[1745055335283,0.063,139.12,139.11,7.75193044]
[1745055336208,5.30441249,139.12,139.11,7.75193044]
[1745055337119,5.30441249,139.12,139.11,14.94048625]
[1745055339692,0.063,139.12,139.11,14.94048625]
[1745055341693,0.063,139.12,139.11,40.94048625]
[1745055343116,0.063,139.15,139.14,26.0]
[1745055343290,0.063,139.15,139.14,116.25193044]
[1745055344815,0.063,139.15,139.14,123.43893633]
[1745055346313,0.063,139.16,139.14,123.43893633]
[1745055346499,0.063,139.16,139.15,7.75193044]
[1745055346698,0.063,139.17,139.15,7.75193044]
[1745055346899,0.063,139.17,139.16,33.75193044]
[1745055347613,1e-08,139.17,139.16,134.9015793]
[1745055347816,0.063,139.19,139.16,134.9015793]
[1745055347996,0.063,139.19,139.17,14.93738707]
[1745055350398,0.063,139.19,139.18,7.75193044]
[1745055351000,0.063,139.24,139.19,57.40930106]
[1745055351201,0.063,139.24,139.2,64.7596522]
[1745055351521,0.063,139.24,139.21,18.64964886]
[1745055351703,0.063,139.24,139.21,26.4015793]
[1745055352511,0.063,139.24,139.21,33.58497129]
[1745055355601,0.063,139.24,139.21,116.08497129]
[1745055356015,0.063,139.24,139.21,97.43532243]
[1745055356427,0.063,139.24,139.23,26.0]
[1745055356606,0.063,139.24,139.23,116.25193044]
[1745055358627,0.063,139.24,139.23,123.43429056]
[1745055359215,0.063,139.24,139.23,142.08393942]
[1745055359930,0.063,139.26,139.23,160.03983972]
[1745055360121,0.063,139.26,139.25,26.4015793]
[1745055360425,0.063,139.26,139.25,116.25193044]
[1745055360620,0.063,139.26,139.25,123.43325898]
[1745055361597,0.063,139.26,139.25,97.43325898]
[1745055361808,0.063,139.26,139.25,116.08290784]
[1745055363227,0.063,139.27,139.26,18.64964886]
[1745055363403,0.063,139.27,139.26,26.4015793]
[1745055363935,0.063,139.3,139.29,26.0]
[1745055364110,0.063,139.3,139.29,116.25193044]
[1745055365325,0.063,139.3,139.29,123.43119671]
[1745055365726,0.063,139.3,139.29,142.08084557]
[1745055366324,0.063,139.3,139.29,156.22084557]
[1745055366723,0.063,139.32,139.3,19.64964886]
[1745055366923,0.063,139.36,139.35,26.0]
[1745055367136,0.063,139.36,139.35,123.42810553]
[1745055367529,0.063,139.36,139.35,116.25193044]
[1745055368225,0.063,139.36,139.35,123.42810553]
[1745055368425,0.063,139.36,139.35,116.25193044]
[1745055369153,0.063,139.36,139.35,120.56619977]
[1745055369817,0.063,139.36,139.35,82.5]
[1745055370220,0.063,139.36,139.33,38.06619977]
[1745055372245,0.063,139.36,139.33,12.06619977]
[1745055373738,0.063,139.36,139.32,12.06619977]
[1745055374252,13.63409977,139.35,139.31,26.0]
[1745055374744,1.5679,139.35,139.31,38.06619977]
[1745055374932,1.5679,139.35,139.32,12.06619977]
[1745055376331,8.74407641,139.35,139.32,12.06619977]
[1745055382150,1.5679,139.35,139.32,12.06619977]
[1745055382652,8.74424174,139.35,139.31,26.0]
[1745055382850,20.81044151,139.35,139.3,94.56619977]
[1745055383358,12.06619977,139.34,139.3,94.56619977]
[1745055383672,1.5686,139.3,139.25,82.5]
[1745055383986,12.06619977,139.29,139.25,82.5]
[1745055384769,19.24554752,139.29,139.25,82.5]
[1745055385135,12.06619977,139.29,139.25,82.5]
[1745055385337,13.63479977,139.3,139.25,101.74735859]
[1745055386443,1.5686,139.3,139.25,101.74735859]
[1745055386642,6.4484,139.34,139.29,19.24503105]
[1745055386643,1.5686,139.33,139.29,19.24503105]
[1745055386955,0.063,139.36,139.32,12.06619977]
[1745055387541,0.063,139.36,139.31,12.06619977]
[1745055387777,12.12919977,139.36,139.31,12.06619977]
[1745055388153,12.12919977,139.36,139.31,19.2443497]
[1745055389176,12.12919977,139.36,139.32,19.24391433]
[1745055389471,12.12919977,139.36,139.33,12.06619977]
[1745055389472,0.063,139.36,139.33,12.06619977]
[1745055391457,0.063,139.36,139.33,19.24316135]
[1745055394270,0.063,139.36,139.35,12.06619977]
[1745055394656,0.063,139.36,139.34,12.06619977]
[1745055395883,0.063,139.36,139.35,7.17617509]
[1745055397575,0.063,139.36,139.35,19.24237486]
[1745055398260,0.063,139.36,139.35,7.17617509]
[1745055398655,0.063,139.36,139.34,12.06619977]
[1745055398856,0.063,139.36,139.34,7.17657304]
[1745055399755,0.063,139.36,139.34,19.24277281]
[1745055399973,0.063,139.36,139.35,12.06619977]
[1745055400682,0.063,139.36,139.35,19.24237486]
[1745055403956,0.063,139.36,139.35,7.17617509]
[1745055413069,0.063,139.36,139.35,14.89955692]
[1745055417065,0.063,139.36,139.35,97.39955692]
[1745055419470,0.063,139.36,139.35,116.04920578]
[1745055421092,1e-08,139.36,139.35,117.04920578]
[1745055423174,1e-08,139.36,139.35,116.04920578]
[1745055423573,1e-08,139.36,139.35,108.32582395]
[1745055423888,1e-08,139.36,139.35,89.67617509]
[1745055424094,1e-08,139.36,139.35,108.5]
[1745055424889,1e-08,139.36,139.35,115.67617509]
[1745055425587,1e-08,139.36,139.35,89.67617509]
[1745055425790,1e-08,139.36,139.35,97.39955692]
[1745055425974,1e-08,139.36,139.35,123.39955692]
[1745055426376,1e-08,139.36,139.35,116.04920578]
[1745055426776,1e-08,139.36,139.35,117.04920578]
[1745055428093,1e-08,139.36,139.35,116.04920578]
[1745055430393,1e-08,139.36,139.35,117.04920578]
[1745055432597,1e-08,139.36,139.35,116.04920578]
[1745055432801,1e-08,139.36,139.35,117.04920578]
[1745055435602,1e-08,139.36,139.35,116.04920578]
[1745055436410,1e-08,139.36,139.35,117.04920578]
[1745055436913,1e-08,139.36,139.35,116.04920578]
[1745055437104,1e-08,139.36,139.35,117.04920578]
[1745055437411,1e-08,139.36,139.35,116.04920578]
[1745055437591,1e-08,139.36,139.35,117.04920578]
[1745055439017,1e-08,139.36,139.35,116.04920578]
[1745055439212,1e-08,139.36,139.35,117.04920578]
[1745055440406,1e-08,139.36,139.35,116.04920578]
[1745055440611,1e-08,139.36,139.35,131.16920578]
[1745055441513,1e-08,139.36,139.35,130.16920578]
[1745055442014,1e-08,139.36,139.35,131.16920578]
[1745055442615,1e-08,139.36,139.35,130.16920578]
[1745055442805,1e-08,139.36,139.35,162.0627331]
[1745055443000,1e-08,139.36,139.35,131.16920578]
[1745055445820,1e-08,139.36,139.35,130.16920578]
[1745055446022,1e-08,139.36,139.35,103.79617509]
[1745055446313,1e-08,139.36,139.35,111.51955692]
[1745055446622,1e-08,139.36,139.35,137.51955692]
[1745055446917,1e-08,139.36,139.35,103.79617509]
[1745055447125,1e-08,139.36,139.35,115.67617509]
[1745055447819,1e-08,139.36,139.35,123.39955692]
[1745055459931,5.21276656,139.36,139.35,123.39955692]
[1745055463318,5.21276656,139.36,139.32,82.5]
[1745055463524,12.93614839,139.36,139.33,33.17697933]
[1745055463726,1.6079,139.35,139.32,89.67748439]
[1745055464036,1.6079,139.35,139.31,111.52141774]
[1745055464233,5.21276655,139.34,139.31,111.52141774]
[1745055465011,5.21276655,139.34,139.31,103.79803591]
[1745055465212,9.33128183,139.35,139.31,103.79803591]
[1745055465430,9.33128183,139.35,139.31,111.52141774]
[1745055465431,1.6079,139.35,139.31,111.52141774]
[1745055466424,5.34824586,139.34,139.31,82.5]
[1745055467036,19.33132769,139.34,139.3,7.17864965]
[1745055467338,5.34824586,139.33,139.29,123.4654419]
[1745055467936,13.98308183,139.34,139.29,123.4654419]
[1745055468238,21.15987592,139.34,139.29,123.4654419]
[1745055468617,13.43649409,139.34,139.29,123.4654419]
[1745055468819,5.09678239,139.33,139.31,7.72338183]
[1745055469219,5.09678239,139.33,139.32,7.72338183]
[1745055469627,5.09678239,139.33,139.31,7.72338183]
[1745055470033,1.6079,139.35,139.31,14.90152497]
[1745055470732,5.34661257,139.34,139.31,14.90152497]
[1745055471634,5.34661257,139.33,139.31,14.90152497]
[1745055472335,1.6079,139.35,139.31,14.90152497]
[1745055473338,5.09882591,139.34,139.31,14.90152497]
[1745055473525,10.44746357,139.34,139.31,14.90152497]
[1745055474237,5.34863766,139.33,139.31,14.90152497]
[1745055475426,1.6079,139.35,139.31,14.90152497]
[1745055476221,5.34986659,139.34,139.31,14.90152497]
[1745055476738,5.10121067,139.33,139.31,14.90152497]
[1745055478140,1.6079,139.35,139.31,14.90152497]
[1745055478442,1.6079,139.35,139.33,7.72338183]
[1745055478626,1e-08,139.36,139.34,7.72338183]
[1745055478826,1e-08,139.36,139.35,7.72338183]
[1745055480021,1e-08,139.36,139.35,14.89955692]
[1745055483726,1e-08,139.36,139.35,7.72338183]
[1745055484532,1e-08,139.36,139.35,90.22338183]
[1745055484736,1e-08,139.36,139.35,82.5]
[1745055485751,5.34792055,139.36,139.35,82.5]
[1745055485933,10.44672399,139.36,139.35,82.5]
[1745055486333,10.44672399,139.36,139.33,7.72338183]
[1745055486724,5.34792054,139.35,139.34,7.72338183]
[1745055489448,5.34792054,139.35,139.34,14.90007194]
[1745055489944,5.34792054,139.35,139.34,116.0497208]
[1745055490247,1e-08,139.36,139.34,116.0497208]
[1745055490447,1e-08,139.36,139.35,33.72338183]
[1745055491451,1e-08,139.36,139.35,40.89955692]
[1745055492051,1e-08,139.36,139.35,33.54920578]
[1745055492655,1e-08,139.36,139.35,14.89955692]
[1745055493356,1e-08,139.36,139.35,116.04920578]
[1745055493535,1e-08,139.36,139.35,97.39955692]
[1745055494448,1e-08,139.36,139.35,116.22338183]
[1745055494951,1e-08,139.36,139.35,26.0]
[1745055495853,10.44693847,139.36,139.35,26.0]
[1745055496147,10.44693847,139.36,139.35,33.72338183]
[1745055496445,5.09884389,139.36,139.35,40.89955692]
[1745055496853,1e-08,139.36,139.35,123.39955692]
[1745055501663,1e-08,139.36,139.35,116.22338183]
[1745055503154,1e-08,139.36,139.35,123.39955692]
[1745055506382,1e-08,139.36,139.35,116.22338183]
[1745055506569,1e-08,139.36,139.35,123.39955692]
[1745055510396,1e-08,139.36,139.35,26.0]
[1745055510599,5.34991802,139.36,139.34,7.72338183]
[1745055510774,10.45074727,139.36,139.33,7.72338183]
[1745055510978,10.45074727,139.36,139.34,7.72338183]
[1745055511181,5.10082926,139.36,139.34,7.72338183]
[1745055511378,5.10082926,139.36,139.32,115.67753224]
[1745055511586,5.10082926,139.36,139.32,7.17753224]
[1745055511784,5.10082925,139.35,139.33,7.72338183]
[1745055511973,5.10082925,139.35,139.31,21.31774856]
[1745055512178,5.10082925,139.35,139.33,7.72338183]
[1745055512375,5.10082925,139.35,139.31,21.31774856]
[1745055512376,5.10082925,139.35,139.32,26.0]
[1745055512576,7.17581759,139.36,139.32,26.0]
[1745055512779,5.35166459,139.35,139.32,26.0]
[1745055512974,5.35166459,139.35,139.33,7.72338183]
[1745055513588,5.35166459,139.34,139.33,7.72338183]
[1745055513994,10.45432466,139.34,139.33,7.72338183]
[1745055517596,10.45432466,139.34,139.33,26.0]
[1745055517794,17.63118967,139.34,139.31,7.72338183]
[1745055517987,17.63118967,139.34,139.3,82.5]
[1745055518188,17.63118967,139.34,139.3,90.22338183]
[1745055518502,17.63118967,139.34,139.31,7.72338183]
[1745055518701,5.35166459,139.33,139.31,7.72338183]
[1745055519193,5.10266007,139.32,139.29,26.063]
[1745055519394,5.10266007,139.32,139.29,0.063]
[1745055519980,5.35166459,139.31,139.29,0.063]
[1745055520293,13.07504642,139.31,139.29,0.063]
[1745055520504,5.10266007,139.3,139.29,0.063]
[1745055520899,17.63307555,139.3,139.29,0.063]
[1745055521397,25.35645738,139.3,139.29,0.063]
[1745055521782,33.03305738,139.3,139.29,0.063]
[1745055524179,11.97922466,139.3,139.29,0.063]
[1745055527786,6.87656459,139.3,139.29,0.063]
[1745055527988,14.05531548,139.3,139.29,0.063]
[1745055528188,8.70365089,139.3,139.29,0.063]
[1745055531113,1.5249,139.3,139.29,0.063]
[1745055531496,8.70365089,139.3,139.29,0.063]
[1745055531697,8.70365089,139.3,139.26,2.91237182]
[1745055534016,16.42703272,139.3,139.25,7.78638183]
[1745055534914,8.70365089,139.3,139.26,7.72338183]
[1745055535499,8.70365089,139.3,139.27,7.72338183]
[1745055536905,1.5249,139.3,139.28,7.72338183]
[1745055537503,7.17843553,139.31,139.28,7.72338183]
[1745055537834,8.69662985,139.35,139.3,7.72338183]
[1745055537999,8.69662985,139.35,139.33,7.72338183]
[1745055538718,1e-08,139.36,139.34,7.72338183]
[1745055538922,1e-08,139.36,139.35,7.72338183]
[1745055539501,1e-08,139.36,139.34,7.72338183]
[1745055540317,1e-08,139.36,139.35,7.72338183]
[1745055542522,1e-08,139.36,139.35,14.89955692]
[1745055543824,1e-08,139.36,139.35,64.4427331]
[1745055544629,0.063,139.4,139.39,26.0]
[1745055544926,0.063,139.4,139.39,33.72338183]
[1745055545625,0.063,139.4,139.39,47.55169762]
[1745055546328,0.063,139.4,139.39,40.89749762]
[1745055546826,0.063,139.4,139.39,33.72338183]
[1745055547429,0.063,139.4,139.38,7.72338183]
[1745055549024,0.063,139.4,139.36,33.72338183]
[1745055549706,0.063,139.4,139.36,7.72338183]
[1745055549907,0.063,139.4,139.34,33.17659101]
[1745055550113,7.72338183,139.38,139.33,21.31706874]
[1745055550315,7.72338183,139.38,139.33,55.04045057]
[1745055550609,7.72338183,139.38,139.33,29.04045057]
[1745055550808,14.89820921,139.38,139.33,29.04045057]
[1745055553128,19.24480478,139.38,139.33,33.38704614]
[1745055554530,7.17482738,139.38,139.34,12.0699774]
[1745055554839,20.8423807,139.39,139.34,19.24650018]
[1745055555140,0.063,139.4,139.37,12.0699774]
[1745055555813,19.30670955,139.4,139.35,38.0699774]
[1745055556437,0.063,139.4,139.36,12.0699774]
[1745055558415,12.1329774,139.4,139.35,38.0699774]
[1745055559325,0.063,139.4,139.35,12.0699774]
[1745055559525,12.0699774,139.39,139.34,94.5699774]
[1745055559728,17.13846019,139.39,139.34,12.0699774]
[1745055560824,7.1746305,139.38,139.34,12.0699774]
[1745055562028,19.2446079,139.38,139.33,12.0699774]
[1745055562419,7.1746305,139.38,139.34,12.0699774]
[1745055563335,19.2446079,139.38,139.33,12.0699774]
[1745055563539,12.0699774,139.37,139.32,19.2474907]
[1745055563936,19.2446079,139.38,139.32,7.1775133]
[1745055564234,12.0699774,139.37,139.32,19.2474907]
[1745055564541,19.24530531,139.37,139.32,19.2474907]
[1745055564742,13.7174774,139.36,139.31,115.67808745]
[1745055564927,13.7174774,139.36,139.31,45.24806485]
[1745055565323,1.6475,139.36,139.31,45.24806485]
[1745055567145,8.82318599,139.36,139.32,12.0699774]
[1745055567852,7.1746305,139.38,139.32,12.0699774]
[1745055568048,12.0699774,139.37,139.32,12.0699774]
[1745055568524,7.17566016,139.36,139.32,12.0699774]
[1745055568726,19.24563756,139.36,139.32,12.0699774]
[1745055569544,19.24563756,139.36,139.32,19.24762296]
[1745055570345,7.17532715,139.37,139.33,12.0699774]
[1745055573149,7.17532715,139.37,139.33,7.72551979]
[1745055573948,5.08063766,139.36,139.33,7.72551979]
[1745055574353,5.08063766,139.36,139.32,7.17764556]
[1745055574536,12.25634714,139.36,139.32,7.17764556]
[1745055574737,12.25634714,139.36,139.32,14.90316535]
[1745055575052,7.17570948,139.36,139.32,14.90316535]
[1745055575245,7.17570948,139.36,139.32,7.17764556]
[1745055575447,7.17570948,139.36,139.32,14.90316535]
[1745055575750,7.17514529,139.37,139.33,7.72551979]
[1745055576854,5.08515314,139.36,139.33,7.72551979]
[1745055577856,7.17514529,139.37,139.33,7.72551979]
[1745055578156,14.90066508,139.37,139.31,33.1779972]
[1745055578449,14.90066508,139.37,139.32,7.72551979]
[1745055578659,13.06548991,139.36,139.31,33.72551979]
[1745055578837,7.17669011,139.34,139.3,89.67854127]
[1745055579038,7.17669011,139.34,139.3,97.40406106]
[1745055579443,7.17669011,139.34,139.29,33.72551979]
[1745055579444,14.9022099,139.34,139.29,33.72551979]
[1745055579755,14.9022099,139.34,139.29,7.72551979]
[1745055580150,10.43325165,139.33,139.29,7.72551979]
[1745055580456,18.15877144,139.33,139.28,123.43488277]
[1745055581055,17.61050102,139.33,139.29,7.72551979]
[1745055581457,10.43325165,139.32,139.29,7.72551979]
[1745055582157,10.43325165,139.32,139.3,7.72551979]
[1745055582449,5.09328153,139.31,139.28,115.70936298]
[1745055582758,5.09328153,139.31,139.3,7.72551979]
[1745055584840,5.09328153,139.31,139.3,14.90427068]
[1745055586157,7.17617509,139.35,139.3,14.90427068]
[1745055586358,7.17617509,139.35,139.31,7.72551979]
[1745055587258,17.6191152,139.34,139.31,7.72551979]
[1745055587958,17.6191152,139.34,139.3,7.72551979]
[1745055588345,10.4422836,139.33,139.3,7.72551979]
[1745055589170,5.09567335,139.32,139.3,7.72551979]
[1745055590041,7.1768316,139.34,139.3,7.72551979]
[1745055590256,7.72551979,139.36,139.31,7.72551979]
[1745055590766,10.44208282,139.35,139.31,7.72551979]
[1745055591582,17.6183441,139.35,139.31,7.72551979]
[1745055591752,5.0955728,139.34,139.31,7.72551979]
[1745055591951,10.44208282,139.34,139.31,7.72551979]
[1745055592662,5.34651002,139.33,139.31,7.72551979]
[1745055593257,5.0955728,139.32,139.31,7.72551979]
[1745055597750,5.0955728,139.32,139.3,14.90394047]
[1745055599274,7.1768306,139.34,139.3,14.90394047]
[1745055600052,5.3525346,139.33,139.3,14.90394047]
[1745055601374,7.1768306,139.34,139.3,14.90394047]
[1745055601873,5.10340291,139.33,139.3,14.90394047]
[1745055602557,5.10340291,139.33,139.31,7.72551979]
[1745055603154,5.10340291,139.32,139.31,7.72551979]
[1745055603369,12.28118512,139.32,139.29,82.5]
[1745055603672,7.72551979,139.3,139.28,0.03]
[1745055603872,13.08397203,139.31,139.28,0.03]
[1745055604074,7.72551979,139.29,139.28,0.03]
[1745055604652,5.10340291,139.29,139.28,0.03]
[1745055604855,10.46185515,139.29,139.28,0.03]
[1745055608677,5.10340291,139.29,139.28,0.03]
[1745055609554,5.10340291,139.29,139.28,7.75551979]
[1745055609753,5.10340291,139.29,139.28,38.65759895]
[1745055609957,5.10340291,139.29,139.28,40.24389895]
[1745055610258,5.35157534,139.31,139.3,7.72551979]
[1745055610453,1.5124,139.37,139.3,7.72551979]
[1745055610675,1.5124,139.37,139.34,7.72551979]
[1745055611070,1.5124,139.37,139.35,7.72551979]
[1745055611378,5.34991968,139.36,139.35,7.72551979]
[1745055611955,5.34991968,139.38,139.35,7.72551979]
[1745055612976,5.34991968,139.38,139.36,7.72551979]
[1745055613162,5.34991968,139.37,139.36,7.72551979]
[1745055614276,5.34991968,139.39,139.36,7.72551979]
[1745055614662,5.34991968,139.39,139.37,7.72551979]
[1745055615271,1.5754,139.4,139.37,7.72551979]
[1745055615779,0.063,139.4,139.39,7.72551979]
[1745055615982,0.063,139.4,139.38,7.72551979]
[1745055616289,0.063,139.4,139.39,7.72551979]
[1745055617089,5.40773694,139.4,139.39,14.89963558]
[1745055618179,0.063,139.4,139.39,14.89963558]
[1745055618480,0.063,139.4,139.38,14.89993902]
[1745055618667,0.063,139.4,139.38,7.17441923]
[1745055618867,0.063,139.4,139.38,14.89993902]
[1745055619067,0.063,139.4,139.37,14.90050135]
[1745055619475,0.063,139.4,139.38,7.72551979]
[1745055619784,0.063,139.4,139.37,14.90050135]
[1745055620182,0.063,139.4,139.38,7.72551979]
[1745055620679,0.063,139.4,139.39,7.72551979]
[1745055621485,0.063,139.4,139.38,7.72551979]
[1745055622382,0.063,139.4,139.38,14.90010372]
[1745055625794,0.063,139.4,139.39,7.72551979]
[1745055626973,0.063,139.4,139.39,14.89963558]
[1745055632388,0.063,139.4,139.39,7.17411579]
[1745055632588,0.063,139.4,139.39,14.89963558]
[1745055638473,0.063,139.4,139.39,7.17411579]
[1745055638678,0.063,139.4,139.37,82.5]